Workbook

Sheet 开始
B1: 关于模板
B2: 使用此模板跟踪每月支出和存款。
B3: 在表中输入“支出详细信息”和“每月收入”以计算存款。
B4: 显示支出和存款的圆环图将自动更新。
B5: 备注：
B6: “预算圆环”工作表的 A 列中提供了附加说明。此文本已被有意隐藏。若要删除文本，请选择 A 列，然后选择“删除”。若要取消隐藏文本，请选择 A 列，然后更改字体颜色。
B7: 若要了解有关表格的详细信息，请在表格内按 SHIFT + F10，选择“表格”选项，然后选择“替换文本”。

Sheet 预算圆环
B1: 预算圆环 | D1: 使用此模板填写表格。此图将根据每月收入绘制每月支出图表。它还将计算百分比以显示你将节省/已节省多少钱。
B2: 每月 收入 | G2: 存款 金额
B3: ¥5,738 | G3: =存款 -> ¥2,777
G4: 计算值 自动
B6: 费用 | C6: 类别 | D6: 金额 | E6: 频率 | F6: 每月金额 | G6: 占总数的百分比
B7: 保险 | C7: 交通 | D7: ¥300 | E7: 每 6 个月 | F7: =IF(费用[[#This Row],[金额]]>0,IF(费用[[#This Row],[频率]]<>"",ROUND(IF(费用[[#This Row],[频率]]="每月",费用[金额],IF(费用[[#This Row],[频率]]="每周",费用[[#This Row],[金额]]*4,IF(费用[[#This Row],[频率]]="每季度",费用[[#This Row],[金额]]/3,IF(费用[[#This Row],[频率]]="每 6 个月",费用[[#This Row],[金额]]/6,IF(费用[[#This Row],[频率]]="年度",费用[[#This Row],[金额]]/12,IF(费用[[#This Row],[频率]]="每隔一周",费用[[#This Row],[金额]]*2,IF(费用[[#This Row],[频率]]="每隔一个月",费用[[#This Row],[金额]]/2,""))))))),0),""),"") -> ¥50 | G7: =IF(费用[[#This Row],[每月金额]]<>"",费用[[#This Row],[每月金额]]/收入,"") -> ¥0
B8: 燃气 | C8: 交通 | D8: ¥25 | E8: 每周 | F8: =IF(费用[[#This Row],[金额]]>0,IF(费用[[#This Row],[频率]]<>"",ROUND(IF(费用[[#This Row],[频率]]="每月",费用[金额],IF(费用[[#This Row],[频率]]="每周",费用[[#This Row],[金额]]*4,IF(费用[[#This Row],[频率]]="每季度",费用[[#This Row],[金额]]/3,IF(费用[[#This Row],[频率]]="每 6 个月",费用[[#This Row],[金额]]/6,IF(费用[[#This Row],[频率]]="年度",费用[[#This Row],[金额]]/12,IF(费用[[#This Row],[频率]]="每隔一周",费用[[#This Row],[金额]]*2,IF(费用[[#This Row],[频率]]="每隔一个月",费用[[#This Row],[金额]]/2,""))))))),0),""),"") -> ¥100 | G8: =IF(费用[[#This Row],[每月金额]]<>"",费用[[#This Row],[每月金额]]/收入,"") -> ¥0
B9: 车贷 | C9: 交通 | D9: ¥200 | E9: 每月 | F9: =IF(费用[[#This Row],[金额]]>0,IF(费用[[#This Row],[频率]]<>"",ROUND(IF(费用[[#This Row],[频率]]="每月",费用[金额],IF(费用[[#This Row],[频率]]="每周",费用[[#This Row],[金额]]*4,IF(费用[[#This Row],[频率]]="每季度",费用[[#This Row],[金额]]/3,IF(费用[[#This Row],[频率]]="每 6 个月",费用[[#This Row],[金额]]/6,IF(费用[[#This Row],[频率]]="年度",费用[[#This Row],[金额]]/12,IF(费用[[#This Row],[频率]]="每隔一周",费用[[#This Row],[金额]]*2,IF(费用[[#This Row],[频率]]="每隔一个月",费用[[#This Row],[金额]]/2,""))))))),0),""),"") -> ¥200 | G9: =IF(费用[[#This Row],[每月金额]]<>"",费用[[#This Row],[每月金额]]/收入,"") -> ¥0
B10: 抵押贷款 | C10: 住房 | D10: ¥1,600 | E10: 每月 | F10: =IF(费用[[#This Row],[金额]]>0,IF(费用[[#This Row],[频率]]<>"",ROUND(IF(费用[[#This Row],[频率]]="每月",费用[金额],IF(费用[[#This Row],[频率]]="每周",费用[[#This Row],[金额]]*4,IF(费用[[#This Row],[频率]]="每季度",费用[[#This Row],[金额]]/3,IF(费用[[#This Row],[频率]]="每 6 个月",费用[[#This Row],[金额]]/6,IF(费用[[#This Row],[频率]]="年度",费用[[#This Row],[金额]]/12,IF(费用[[#This Row],[频率]]="每隔一周",费用[[#This Row],[金额]]*2,IF(费用[[#This Row],[频率]]="每隔一个月",费用[[#This Row],[金额]]/2,""))))))),0),""),"") -> ¥1,600 | G10: =IF(费用[[#This Row],[每月金额]]<>"",费用[[#This Row],[每月金额]]/收入,"") -> ¥0
B11: 有线电视费 | C11: 住房 | D11: ¥60 | E11: 每月 | F11: =IF(费用[[#This Row],[金额]]>0,IF(费用[[#This Row],[频率]]<>"",ROUND(IF(费用[[#This Row],[频率]]="每月",费用[金额],IF(费用[[#This Row],[频率]]="每周",费用[[#This Row],[金额]]*4,IF(费用[[#This Row],[频率]]="每季度",费用[[#This Row],[金额]]/3,IF(费用[[#This Row],[频率]]="每 6 个月",费用[[#This Row],[金额]]/6,IF(费用[[#This Row],[频率]]="年度",费用[[#This Row],[金额]]/12,IF(费用[[#This Row],[频率]]="每隔一周",费用[[#This Row],[金额]]*2,IF(费用[[#This Row],[频率]]="每隔一个月",费用[[#This Row],[金额]]/2,""))))))),0),""),"") -> ¥60 | G11: =IF(费用[[#This Row],[每月金额]]<>"",费用[[#This Row],[每月金额]]/收入,"") -> ¥0
B12: 电影之夜 | C12: 娱乐 | D12: ¥70 | E12: 每月 | F12: =IF(费用[[#This Row],[金额]]>0,IF(费用[[#This Row],[频率]]<>"",ROUND(IF(费用[[#This Row],[频率]]="每月",费用[金额],IF(费用[[#This Row],[频率]]="每周",费用[[#This Row],[金额]]*4,IF(费用[[#This Row],[频率]]="每季度",费用[[#This Row],[金额]]/3,IF(费用[[#This Row],[频率]]="每 6 个月",费用[[#This Row],[金额]]/6,IF(费用[[#This Row],[频率]]="年度",费用[[#This Row],[金额]]/12,IF(费用[[#This Row],[频率]]="每隔一周",费用[[#This Row],[金额]]*2,IF(费用[[#This Row],[频率]]="每隔一个月",费用[[#This Row],[金额]]/2,""))))))),0),""),"") -> ¥70 | G12: =IF(费用[[#This Row],[每月金额]]<>"",费用[[#This Row],[每月金额]]/收入,"") -> ¥0
B13: 运动鞋 | C13: 杂项费 | D13: ¥300 | E13: 年度 | F13: =IF(费用[[#This Row],[金额]]>0,IF(费用[[#This Row],[频率]]<>"",ROUND(IF(费用[[#This Row],[频率]]="每月",费用[金额],IF(费用[[#This Row],[频率]]="每周",费用[[#This Row],[金额]]*4,IF(费用[[#This Row],[频率]]="每季度",费用[[#This Row],[金额]]/3,IF(费用[[#This Row],[频率]]="每 6 个月",费用[[#This Row],[金额]]/6,IF(费用[[#This Row],[频率]]="年度",费用[[#This Row],[金额]]/12,IF(费用[[#This Row],[频率]]="每隔一周",费用[[#This Row],[金额]]*2,IF(费用[[#This Row],[频率]]="每隔一个月",费用[[#This Row],[金额]]/2,""))))))),0),""),"") -> ¥25 | G13: =IF(费用[[#This Row],[每月金额]]<>"",费用[[#This Row],[每月金额]]/收入,"") -> ¥0
B14: 狗粮 | C14: 杂项费 | D14: ¥60 | E14: 每月 | F14: =IF(费用[[#This Row],[金额]]>0,IF(费用[[#This Row],[频率]]<>"",ROUND(IF(费用[[#This Row],[频率]]="每月",费用[金额],IF(费用[[#This Row],[频率]]="每周",费用[[#This Row],[金额]]*4,IF(费用[[#This Row],[频率]]="每季度",费用[[#This Row],[金额]]/3,IF(费用[[#This Row],[频率]]="每 6 个月",费用[[#This Row],[金额]]/6,IF(费用[[#This Row],[频率]]="年度",费用[[#This Row],[金额]]/12,IF(费用[[#This Row],[频率]]="每隔一周",费用[[#This Row],[金额]]*2,IF(费用[[#This Row],[频率]]="每隔一个月",费用[[#This Row],[金额]]/2,""))))))),0),""),"") -> ¥60 | G14: =IF(费用[[#This Row],[每月金额]]<>"",费用[[#This Row],[每月金额]]/收入,"") -> ¥0
B15: 宠物保险 | C15: 杂项费 | D15: ¥70 | E15: 年度 | F15: =IF(费用[[#This Row],[金额]]>0,IF(费用[[#This Row],[频率]]<>"",ROUND(IF(费用[[#This Row],[频率]]="每月",费用[金额],IF(费用[[#This Row],[频率]]="每周",费用[[#This Row],[金额]]*4,IF(费用[[#This Row],[频率]]="每季度",费用[[#This Row],[金额]]/3,IF(费用[[#This Row],[频率]]="每 6 个月",费用[[#This Row],[金额]]/6,IF(费用[[#This Row],[频率]]="年度",费用[[#This Row],[金额]]/12,IF(费用[[#This Row],[频率]]="每隔一周",费用[[#This Row],[金额]]*2,IF(费用[[#This Row],[频率]]="每隔一个月",费用[[#This Row],[金额]]/2,""))))))),0),""),"") -> ¥6 | G15: =IF(费用[[#This Row],[每月金额]]<>"",费用[[#This Row],[每月金额]]/收入,"") -> ¥0
B16: 日用杂货 | C16: 食品 | D16: ¥100 | E16: 每周 | F16: =IF(费用[[#This Row],[金额]]>0,IF(费用[[#This Row],[频率]]<>"",ROUND(IF(费用[[#This Row],[频率]]="每月",费用[金额],IF(费用[[#This Row],[频率]]="每周",费用[[#This Row],[金额]]*4,IF(费用[[#This Row],[频率]]="每季度",费用[[#This Row],[金额]]/3,IF(费用[[#This Row],[频率]]="每 6 个月",费用[[#This Row],[金额]]/6,IF(费用[[#This Row],[频率]]="年度",费用[[#This Row],[金额]]/12,IF(费用[[#This Row],[频率]]="每隔一周",费用[[#This Row],[金额]]*2,IF(费用[[#This Row],[频率]]="每隔一个月",费用[[#This Row],[金额]]/2,""))))))),0),""),"") -> ¥400 | G16: =IF(费用[[#This Row],[每月金额]]<>"",费用[[#This Row],[每月金额]]/收入,"") -> ¥0
B17: 咖啡 | C17: 食品 | D17: ¥25 | E17: 每周 | F17: =IF(费用[[#This Row],[金额]]>0,IF(费用[[#This Row],[频率]]<>"",ROUND(IF(费用[[#This Row],[频率]]="每月",费用[金额],IF(费用[[#This Row],[频率]]="每周",费用[[#This Row],[金额]]*4,IF(费用[[#This Row],[频率]]="每季度",费用[[#This Row],[金额]]/3,IF(费用[[#This Row],[频率]]="每 6 个月",费用[[#This Row],[金额]]/6,IF(费用[[#This Row],[频率]]="年度",费用[[#This Row],[金额]]/12,IF(费用[[#This Row],[频率]]="每隔一周",费用[[#This Row],[金额]]*2,IF(费用[[#This Row],[频率]]="每隔一个月",费用[[#This Row],[金额]]/2,""))))))),0),""),"") -> ¥100 | G17: =IF(费用[[#This Row],[每月金额]]<>"",费用[[#This Row],[每月金额]]/收入,"") -> ¥0
B18: 登山装备 | C18: 娱乐 | D18: ¥170 | E18: 年度 | F18: =IF(费用[[#This Row],[金额]]>0,IF(费用[[#This Row],[频率]]<>"",ROUND(IF(费用[[#This Row],[频率]]="每月",费用[金额],IF(费用[[#This Row],[频率]]="每周",费用[[#This Row],[金额]]*4,IF(费用[[#This Row],[频率]]="每季度",费用[[#This Row],[金额]]/3,IF(费用[[#This Row],[频率]]="每 6 个月",费用[[#This Row],[金额]]/6,IF(费用[[#This Row],[频率]]="年度",费用[[#This Row],[金额]]/12,IF(费用[[#This Row],[频率]]="每隔一周",费用[[#This Row],[金额]]*2,IF(费用[[#This Row],[频率]]="每隔一个月",费用[[#This Row],[金额]]/2,""))))))),0),""),"") -> ¥14 | G18: =IF(费用[[#This Row],[每月金额]]<>"",费用[[#This Row],[每月金额]]/收入,"") -> ¥0
B19: 健身俱乐部会员费 | C19: 杂项费 | D19: ¥60 | E19: 每月 | F19: =IF(费用[[#This Row],[金额]]>0,IF(费用[[#This Row],[频率]]<>"",ROUND(IF(费用[[#This Row],[频率]]="每月",费用[金额],IF(费用[[#This Row],[频率]]="每周",费用[[#This Row],[金额]]*4,IF(费用[[#This Row],[频率]]="每季度",费用[[#This Row],[金额]]/3,IF(费用[[#This Row],[频率]]="每 6 个月",费用[[#This Row],[金额]]/6,IF(费用[[#This Row],[频率]]="年度",费用[[#This Row],[金额]]/12,IF(费用[[#This Row],[频率]]="每隔一周",费用[[#This Row],[金额]]*2,IF(费用[[#This Row],[频率]]="每隔一个月",费用[[#This Row],[金额]]/2,""))))))),0),""),"") -> ¥60 | G19: =IF(费用[[#This Row],[每月金额]]<>"",费用[[#This Row],[每月金额]]/收入,"") -> ¥0
B20: 耳机 | C20: 娱乐 | D20: ¥50 | E20: 年度 | F20: =IF(费用[[#This Row],[金额]]>0,IF(费用[[#This Row],[频率]]<>"",ROUND(IF(费用[[#This Row],[频率]]="每月",费用[金额],IF(费用[[#This Row],[频率]]="每周",费用[[#This Row],[金额]]*4,IF(费用[[#This Row],[频率]]="每季度",费用[[#This Row],[金额]]/3,IF(费用[[#This Row],[频率]]="每 6 个月",费用[[#This Row],[金额]]/6,IF(费用[[#This Row],[频率]]="年度",费用[[#This Row],[金额]]/12,IF(费用[[#This Row],[频率]]="每隔一周",费用[[#This Row],[金额]]*2,IF(费用[[#This Row],[频率]]="每隔一个月",费用[[#This Row],[金额]]/2,""))))))),0),""),"") -> ¥4 | G20: =IF(费用[[#This Row],[每月金额]]<>"",费用[[#This Row],[每月金额]]/收入,"") -> ¥0
B21: 理发 | C21: 杂项费 | D21: ¥70 | E21: 每月 | F21: =IF(费用[[#This Row],[金额]]>0,IF(费用[[#This Row],[频率]]<>"",ROUND(IF(费用[[#This Row],[频率]]="每月",费用[金额],IF(费用[[#This Row],[频率]]="每周",费用[[#This Row],[金额]]*4,IF(费用[[#This Row],[频率]]="每季度",费用[[#This Row],[金额]]/3,IF(费用[[#This Row],[频率]]="每 6 个月",费用[[#This Row],[金额]]/6,IF(费用[[#This Row],[频率]]="年度",费用[[#This Row],[金额]]/12,IF(费用[[#This Row],[频率]]="每隔一周",费用[[#This Row],[金额]]*2,IF(费用[[#This Row],[频率]]="每隔一个月",费用[[#This Row],[金额]]/2,""))))))),0),""),"") -> ¥70 | G21: =IF(费用[[#This Row],[每月金额]]<>"",费用[[#This Row],[每月金额]]/收入,"") -> ¥0
B22: 视频游戏 | C22: 娱乐 | D22: ¥100 | E22: 每月 | F22: =IF(费用[[#This Row],[金额]]>0,IF(费用[[#This Row],[频率]]<>"",ROUND(IF(费用[[#This Row],[频率]]="每月",费用[金额],IF(费用[[#This Row],[频率]]="每周",费用[[#This Row],[金额]]*4,IF(费用[[#This Row],[频率]]="每季度",费用[[#This Row],[金额]]/3,IF(费用[[#This Row],[频率]]="每 6 个月",费用[[#This Row],[金额]]/6,IF(费用[[#This Row],[频率]]="年度",费用[[#This Row],[金额]]/12,IF(费用[[#This Row],[频率]]="每隔一周",费用[[#This Row],[金额]]*2,IF(费用[[#This Row],[频率]]="每隔一个月",费用[[#This Row],[金额]]/2,""))))))),0),""),"") -> ¥100 | G22: =IF(费用[[#This Row],[每月金额]]<>"",费用[[#This Row],[每月金额]]/收入,"") -> ¥0
B23: 衣服 | C23: 杂项费 | D23: ¥500 | E23: 年度 | F23: =IF(费用[[#This Row],[金额]]>0,IF(费用[[#This Row],[频率]]<>"",ROUND(IF(费用[[#This Row],[频率]]="每月",费用[金额],IF(费用[[#This Row],[频率]]="每周",费用[[#This Row],[金额]]*4,IF(费用[[#This Row],[频率]]="每季度",费用[[#This Row],[金额]]/3,IF(费用[[#This Row],[频率]]="每 6 个月",费用[[#This Row],[金额]]/6,IF(费用[[#This Row],[频率]]="年度",费用[[#This Row],[金额]]/12,IF(费用[[#This Row],[频率]]="每隔一周",费用[[#This Row],[金额]]*2,IF(费用[[#This Row],[频率]]="每隔一个月",费用[[#This Row],[金额]]/2,""))))))),0),""),"") -> ¥42 | G23: =IF(费用[[#This Row],[每月金额]]<>"",费用[[#This Row],[每月金额]]/收入,"") -> ¥0

Sheet 数据 (hidden)
A1: 此工作表应继续保持隐藏状态
A2: 类别 | B2: 各类别金额 | C2: 总计百分比 | D2: 频率 | E2: 存款
A3: 住房 | B3: =IF(SUMIF(费用[类别],"住房",费用[每月金额])>0,SUMIF(费用[类别],"住房",费用[每月金额]),NA()) -> ¥1,660 | C3: =IF(B3>0,B3/收入,"") -> ¥0 | D3: 每周 | E3: =收入-SUM(费用[每月金额]) -> ¥2,777
A4: 娱乐 | B4: =IF(SUMIF(费用[类别],"娱乐",费用[每月金额])>0,SUMIF(费用[类别],"娱乐",费用[每月金额]),NA()) -> ¥188 | C4: ¥0 | D4: 每月
A5: 交通 | B5: =IF(SUMIF(费用[类别],"交通",费用[每月金额])>0,SUMIF(费用[类别],"交通",费用[每月金额]),NA()) -> ¥350 | C5: ¥0 | D5: 每季度
A6: 食品 | B6: =IF(SUMIF(费用[类别],"食品",费用[每月金额])>0,SUMIF(费用[类别],"食品",费用[每月金额]),NA()) -> ¥500 | C6: ¥0 | D6: 每 6 个月
A7: 杂项费 | B7: =IF(SUMIF(费用[类别],"杂项费",费用[每月金额])>0,SUMIF(费用[类别],"杂项费",费用[每月金额]),NA()) -> ¥263 | C7: ¥0 | D7: 年度
A8: 存款 | B8: =IF(E3>0,E3,NA()) -> ¥2,777 | C8: ¥0 | D8: 每隔一周
D9: 每隔一个月
B10: 汇总： | C10: =SUM(C3:C8) -> ¥1
